[Event "Early-Titled-Tuesday-Blitz-October-17-2023"]
[Site "Chess.com"]
[Date "2023.10.17"]
[Round "11"]
[White "Juicy_Fork"]
[Black "temiksmozg"]
[Result "1-0"]
[WhiteElo "2441"]
[BlackElo "2579"]
[TimeControl "180+1"]
[EndTime "10:10:40 PDT"]
[Termination "Juicy_Fork won by checkmate"]

1. e4 {[%clk 0:02:57.3]} 1... c5 {[%clk 0:02:59.8]} 2. Nf3 {[%clk 0:02:55.3]}
2... Nc6 {[%clk 0:02:59.2]} 3. Bb5 {[%clk 0:02:54.5]} 3... g6 {[%clk 0:02:58.2]}
4. O-O {[%clk 0:02:53.7]} 4... Bg7 {[%clk 0:02:57.5]} 5. c3 {[%clk 0:02:53.6]}
5... e5 {[%clk 0:02:57.1]} 6. d4 {[%clk 0:02:52.9]} 6... exd4 {[%clk 0:02:56.1]}
7. cxd4 {[%clk 0:02:52.3]} 7... Nxd4 {[%clk 0:02:56.6]} 8. Nxd4 {[%clk
0:02:51.3]} 8... cxd4 {[%clk 0:02:57.5]} 9. Bf4 {[%clk 0:02:50.7]} 9... Ne7
{[%clk 0:02:41.9]} 10. Bd6 {[%clk 0:02:48.7]} 10... O-O {[%clk 0:02:33.4]} 11.
e5 {[%clk 0:02:48.4]} 11... Re8 {[%clk 0:02:33.4]} 12. Na3 {[%clk 0:02:22.3]}
12... Nf5 {[%clk 0:02:28.6]} 13. Re1 {[%clk 0:02:16]} 13... b6 {[%clk
0:02:18.3]} 14. Qf3 {[%clk 0:02:05.4]} 14... a6 {[%clk 0:01:55.7]} 15. Qxa8
{[%clk 0:02:02.4]} 15... axb5 {[%clk 0:01:55.7]} 16. Nxb5 {[%clk 0:02:00.8]}
16... Qg5 {[%clk 0:01:55.6]} 17. Rac1 {[%clk 0:01:49.4]} 17... Qd2 {[%clk
0:01:48.9]} 18. Rf1 {[%clk 0:01:43.7]} 18... Qa5 {[%clk 0:01:39.5]} 19. Qb8
{[%clk 0:01:23.5]} 19... Qxb5 {[%clk 0:01:28.4]} 20. Rxc8 {[%clk 0:01:20.5]}
20... Nxd6 {[%clk 0:01:28.4]} 21. exd6 {[%clk 0:01:08.4]} 21... Rxc8 {[%clk
0:01:24.9]} 22. Qxc8+ {[%clk 0:01:09.3]} 22... Bf8 {[%clk 0:01:25.8]} 23. Re1
{[%clk 0:01:07.6]} 23... Kg7 {[%clk 0:01:25.4]} 24. Qc7 {[%clk 0:00:48.5]} 24...
Qxb2 {[%clk 0:01:15.5]} 25. Qxd7 {[%clk 0:00:41.9]} 25... Qb4 {[%clk 0:01:15.1]}
26. Rd1 {[%clk 0:00:32.2]} 26... Bxd6 {[%clk 0:01:14.4]} 27. g3 {[%clk 0:00:21]}
27... Be5 {[%clk 0:01:09.6]} 28. Qd5 {[%clk 0:00:18.9]} 28... Bf6 {[%clk
0:01:08.8]} 29. Kg2 {[%clk 0:00:16.6]} 29... h5 {[%clk 0:01:01.4]} 30. Rc1
{[%clk 0:00:16.4]} 30... Qe7 {[%clk 0:00:58.3]} 31. Rc6 {[%clk 0:00:14.9]} 31...
b5 {[%clk 0:00:46.2]} 32. Rb6 {[%clk 0:00:12.1]} 32... b4 {[%clk 0:00:44.5]} 33.
Rb7 {[%clk 0:00:12.3]} 33... Qe8 {[%clk 0:00:44.5]} 34. Rxb4 {[%clk 0:00:11.4]}
34... h4 {[%clk 0:00:41.9]} 35. Rb7 {[%clk 0:00:10.5]} 35... g5 {[%clk
0:00:26.7]} 36. a4 {[%clk 0:00:09]} 36... g4 {[%clk 0:00:25.8]} 37. gxh4 {[%clk
0:00:09.1]} 37... Kg6 {[%clk 0:00:25.8]} 38. h5+ {[%clk 0:00:07.9]} 38... Kg7
{[%clk 0:00:25.5]} 39. a5 {[%clk 0:00:07.6]} 39... d3 {[%clk 0:00:20.3]} 40. a6
{[%clk 0:00:06.9]} 40... d2 {[%clk 0:00:19.3]} 41. h6+ {[%clk 0:00:05.6]} 41...
Kg6 {[%clk 0:00:17]} 42. Qd3+ {[%clk 0:00:05.2]} 42... Kh5 {[%clk 0:00:14.7]}
43. Rb5+ {[%clk 0:00:04.8]} 43... Bg5 {[%clk 0:00:15.1]} 44. Rxg5+ {[%clk
0:00:04.1]} 44... Kxg5 {[%clk 0:00:15.4]} 45. Qxd2+ {[%clk 0:00:04.7]} 45... Kh5
{[%clk 0:00:15.7]} 46. Qd5+ {[%clk 0:00:03.2]} 46... Kxh6 {[%clk 0:00:10.5]} 47.
a7 {[%clk 0:00:03.7]} 47... f6 {[%clk 0:00:06]} 48. a8=Q {[%clk 0:00:03.8]}
48... Qe2 {[%clk 0:00:06.9]} 49. Qf8+ {[%clk 0:00:02.6]} 49... Kg6 {[%clk
0:00:07.3]} 50. Qfg8+ {[%clk 0:00:03.2]} 50... Kh6 {[%clk 0:00:07.3]} 51. Qh8+
{[%clk 0:00:03.7]} 51... Kg6 {[%clk 0:00:07]} 52. Qc6 {[%clk 0:00:04.3]} 52...
Qb2 {[%clk 0:00:05.9]} 53. Qce8+ {[%clk 0:00:04.6]} 53... Kf5 {[%clk 0:00:06.4]}
54. Qhh5+ {[%clk 0:00:05.4]} 54... Kf4 {[%clk 0:00:06.8]} 55. Qh6+ {[%clk
0:00:04.5]} 55... Kf5 {[%clk 0:00:07]} 56. Qhg6+ {[%clk 0:00:05.1]} 56... Kf4
{[%clk 0:00:07.2]} 57. Qee4# {[%clk 0:00:06]} 1-0

[Event "Early-Titled-Tuesday-Blitz-October-17-2023"]
[Site "Chess.com"]
[Date "2023.10.17"]
[Round "11"]
[White "rasmussvane"]
[Black "AradNazari"]
[Result "1/2-1/2"]
[WhiteElo "2981"]
[BlackElo "2858"]
[TimeControl "180+1"]
[EndTime "10:10:41 PDT"]
[Termination "Game drawn - insufficient material"]

1. Nf3 {[%clk 0:03:00.9]} 1... c5 {[%clk 0:02:55.9]} 2. c4 {[%clk 0:02:58.2]}
2... Nc6 {[%clk 0:02:56.3]} 3. Nc3 {[%clk 0:02:56.1]} 3... e5 {[%clk 0:02:56]}
4. g3 {[%clk 0:02:55.2]} 4... g6 {[%clk 0:02:56.1]} 5. Bg2 {[%clk 0:02:55.6]}
5... Bg7 {[%clk 0:02:56.8]} 6. d3 {[%clk 0:02:56.2]} 6... Nge7 {[%clk
0:02:57.6]} 7. Bg5 {[%clk 0:02:56.3]} 7... O-O {[%clk 0:02:58.4]} 8. Bxe7 {[%clk
0:02:56.3]} 8... Nxe7 {[%clk 0:02:56.3]} 9. O-O {[%clk 0:02:56]} 9... Rb8 {[%clk
0:02:56.7]} 10. Nd2 {[%clk 0:02:53.7]} 10... a6 {[%clk 0:02:55.6]} 11. Rb1
{[%clk 0:02:32.3]} 11... b5 {[%clk 0:02:55.2]} 12. cxb5 {[%clk 0:02:32.8]} 12...
axb5 {[%clk 0:02:55.7]} 13. b4 {[%clk 0:02:33.5]} 13... cxb4 {[%clk 0:02:10.3]}
14. Rxb4 {[%clk 0:02:32.8]} 14... d5 {[%clk 0:02:10.8]} 15. Rxb5 {[%clk
0:02:25.8]} 15... Rxb5 {[%clk 0:02:10.1]} 16. Nxb5 {[%clk 0:02:26.7]} 16... Qa5
{[%clk 0:02:09.7]} 17. a4 {[%clk 0:02:17.8]} 17... Bd7 {[%clk 0:02:08.6]} 18.
Nb1 {[%clk 0:01:39.8]} 18... Bxb5 {[%clk 0:02:02.3]} 19. axb5 {[%clk 0:01:40]}
19... Qxb5 {[%clk 0:02:02.5]} 20. Nc3 {[%clk 0:01:39.9]} 20... Qa5 {[%clk
0:01:58.9]} 21. Qb3 {[%clk 0:01:37.1]} 21... e4 {[%clk 0:01:56.5]} 22. Nd1
{[%clk 0:01:14.5]} 22... exd3 {[%clk 0:01:46.2]} 23. Qxd3 {[%clk 0:01:13.5]}
23... d4 {[%clk 0:01:43.5]} 24. Nb2 {[%clk 0:01:10.5]} 24... Qc3 {[%clk
0:01:42.1]} 25. Nc4 {[%clk 0:01:06]} 25... h5 {[%clk 0:01:08]} 26. Rb1 {[%clk
0:01:05.4]} 26... Nf5 {[%clk 0:01:05.2]} 27. Be4 {[%clk 0:01:03.8]} 27... Nh6
{[%clk 0:00:50.9]} 28. Kg2 {[%clk 0:01:00.7]} 28... Ng4 {[%clk 0:00:47.5]} 29.
h3 {[%clk 0:00:54.8]} 29... Ne5 {[%clk 0:00:45.2]} 30. Nxe5 {[%clk 0:00:54.6]}
30... Bxe5 {[%clk 0:00:42]} 31. Rb5 {[%clk 0:00:54.6]} 31... Qxd3 {[%clk
0:00:38.6]} 32. Bxd3 {[%clk 0:00:53.9]} 32... Bf6 {[%clk 0:00:37.7]} 33. Rb7
{[%clk 0:00:53.1]} 33... Re8 {[%clk 0:00:34.4]} 34. f4 {[%clk 0:00:45.7]} 34...
Re3 {[%clk 0:00:25]} 35. g4 {[%clk 0:00:41.2]} 35... hxg4 {[%clk 0:00:21.4]} 36.
hxg4 {[%clk 0:00:42.1]} 36... g5 {[%clk 0:00:21.9]} 37. fxg5 {[%clk 0:00:36.3]}
37... Bxg5 {[%clk 0:00:21.9]} 38. Rd7 {[%clk 0:00:36.9]} 38... Bf6 {[%clk
0:00:20.6]} 39. Rd5 {[%clk 0:00:36.9]} 39... Re5 {[%clk 0:00:19]} 40. Rd7 {[%clk
0:00:27.8]} 40... Kg7 {[%clk 0:00:17.3]} 41. Kf3 {[%clk 0:00:25.8]} 41... Re3+
{[%clk 0:00:17.2]} 42. Kf4 {[%clk 0:00:23.4]} 42... Re5 {[%clk 0:00:11]} 43. Bc4
{[%clk 0:00:17.6]} 43... Re7 {[%clk 0:00:11.1]} 44. Rd5 {[%clk 0:00:17.7]} 44...
Rc7 {[%clk 0:00:07.6]} 45. Bd3 {[%clk 0:00:17.9]} 45... Rc8 {[%clk 0:00:03.5]}
46. g5 {[%clk 0:00:18.4]} 46... Be7 {[%clk 0:00:02.7]} 47. Rxd4 {[%clk
0:00:17.8]} 47... Rd8 {[%clk 0:00:03.4]} 48. Ra4 {[%clk 0:00:16.5]} 48... Bd6+
{[%clk 0:00:03.9]} 49. Kg4 {[%clk 0:00:16.1]} 49... Rb8 {[%clk 0:00:04.6]} 50.
Ra7 {[%clk 0:00:16.2]} 50... Rb4+ {[%clk 0:00:04.4]} 51. e4 {[%clk 0:00:11.9]}
51... Rd4 {[%clk 0:00:04.1]} 52. Bc2 {[%clk 0:00:10.6]} 52... Rc4 {[%clk
0:00:03.6]} 53. Bb1 {[%clk 0:00:07.3]} 53... Rb4 {[%clk 0:00:03.5]} 54. Bd3
{[%clk 0:00:07.5]} 54... Rd4 {[%clk 0:00:04]} 55. Bc2 {[%clk 0:00:08.2]} 55...
Rc4 {[%clk 0:00:04.3]} 56. Rxf7+ {[%clk 0:00:06.7]} 56... Kxf7 {[%clk
0:00:04.9]} 57. Bb3 {[%clk 0:00:07.2]} 57... Kg6 {[%clk 0:00:05.5]} 58. Bxc4
{[%clk 0:00:07.6]} 58... Be7 {[%clk 0:00:06.2]} 59. Bd3 {[%clk 0:00:03.4]} 59...
Bxg5 {[%clk 0:00:06.6]} 60. e5+ {[%clk 0:00:03.9]} 60... Kh6 {[%clk 0:00:07.4]}
61. e6 {[%clk 0:00:03.9]} 61... Bd8 {[%clk 0:00:08.1]} 62. e7 {[%clk 0:00:04.8]}
62... Bxe7 {[%clk 0:00:08.7]} 1/2-1/2

[Event "Early-Titled-Tuesday-Blitz-October-17-2023"]
[Site "Chess.com"]
[Date "2023.10.17"]
[Round "11"]
[White "ChessQueen"]
[Black "brm72"]
[Result "1-0"]
[WhiteElo "2721"]
[BlackElo "2551"]
[TimeControl "180+1"]
[EndTime "10:10:47 PDT"]
[Termination "ChessQueen won by checkmate"]

1. e4 {[%clk 0:03:00.9]} 1... c5 {[%clk 0:02:59.7]} 2. c3 {[%clk 0:03:00.9]}
2... d5 {[%clk 0:02:59.5]} 3. exd5 {[%clk 0:03:01]} 3... Qxd5 {[%clk 0:03:00.4]}
4. d4 {[%clk 0:03:01.6]} 4... Nf6 {[%clk 0:03:00.8]} 5. Nf3 {[%clk 0:03:01.9]}
5... e6 {[%clk 0:03:00.8]} 6. Be2 {[%clk 0:02:59.6]} 6... Be7 {[%clk 0:02:59.5]}
7. O-O {[%clk 0:02:57.1]} 7... O-O {[%clk 0:02:59.4]} 8. c4 {[%clk 0:02:57.5]}
8... Qd8 {[%clk 0:02:56.4]} 9. dxc5 {[%clk 0:02:56.9]} 9... Bxc5 {[%clk
0:02:56.4]} 10. Nc3 {[%clk 0:02:56]} 10... Nc6 {[%clk 0:02:55.9]} 11. Bg5 {[%clk
0:02:54.8]} 11... Be7 {[%clk 0:02:55.5]} 12. Qc2 {[%clk 0:02:48.6]} 12... Qa5
{[%clk 0:02:52.6]} 13. Rad1 {[%clk 0:02:34.4]} 13... h6 {[%clk 0:02:46.6]} 14.
Bf4 {[%clk 0:02:31.1]} 14... e5 {[%clk 0:02:38.5]} 15. Be3 {[%clk 0:02:24.6]}
15... Be6 {[%clk 0:02:36.5]} 16. a3 {[%clk 0:02:19.6]} 16... Rfd8 {[%clk
0:02:33.5]} 17. Nb5 {[%clk 0:02:11.6]} 17... Rac8 {[%clk 0:01:58.5]} 18. Qc1
{[%clk 0:01:21.7]} 18... a6 {[%clk 0:01:37.2]} 19. b4 {[%clk 0:01:21.4]} 19...
Qa4 {[%clk 0:01:36.6]} 20. Nc3 {[%clk 0:01:20.9]} 20... Qb3 {[%clk 0:01:34.9]}
21. Nd2 {[%clk 0:01:19.2]} 21... Rxd2 {[%clk 0:01:29.2]} 22. Rxd2 {[%clk
0:01:12]} 22... Nd4 {[%clk 0:01:21.2]} 23. Bxd4 {[%clk 0:01:09.8]} 23... exd4
{[%clk 0:01:21.1]} 24. Rxd4 {[%clk 0:01:08.4]} 24... Nd7 {[%clk 0:01:21]} 25.
Nd5 {[%clk 0:01:02.7]} 25... Bxd5 {[%clk 0:01:17.3]} 26. Rxd5 {[%clk 0:01:03.6]}
26... Nf6 {[%clk 0:01:17.3]} 27. Rd3 {[%clk 0:01:02.9]} 27... Qa4 {[%clk
0:01:13.1]} 28. Rfd1 {[%clk 0:01:02.4]} 28... a5 {[%clk 0:01:09.8]} 29. b5
{[%clk 0:00:54]} 29... b6 {[%clk 0:01:00.9]} 30. h3 {[%clk 0:00:53.6]} 30... Kh7
{[%clk 0:00:51.4]} 31. Rc3 {[%clk 0:00:49]} 31... g6 {[%clk 0:00:48.4]} 32. Bd3
{[%clk 0:00:46]} 32... Nd5 {[%clk 0:00:37.2]} 33. Re1 {[%clk 0:00:35.4]} 33...
Bg5 {[%clk 0:00:32.5]} 34. Qc2 {[%clk 0:00:30.6]} 34... Nxc3 {[%clk 0:00:31.5]}
35. Qxc3 {[%clk 0:00:31.5]} 35... Qxb5 {[%clk 0:00:25.6]} 36. g3 {[%clk
0:00:23.4]} 36... Qc6 {[%clk 0:00:24.8]} 37. h4 {[%clk 0:00:21.7]} 37... Bf6
{[%clk 0:00:24.8]} 38. Qc2 {[%clk 0:00:22.3]} 38... h5 {[%clk 0:00:22.4]} 39.
Qe2 {[%clk 0:00:21.1]} 39... Kg7 {[%clk 0:00:21.9]} 40. Rc1 {[%clk 0:00:19.8]}
40... Qc5 {[%clk 0:00:22.1]} 41. Be4 {[%clk 0:00:19.4]} 41... Re8 {[%clk
0:00:21.8]} 42. Qf3 {[%clk 0:00:19.4]} 42... Re5 {[%clk 0:00:08.4]} 43. Rc2
{[%clk 0:00:19.3]} 43... Qd4 {[%clk 0:00:07.3]} 44. Bd5 {[%clk 0:00:14.1]} 44...
Rf5 {[%clk 0:00:06.7]} 45. Qe4 {[%clk 0:00:12.7]} 45... Qa1+ {[%clk 0:00:06.1]}
46. Kg2 {[%clk 0:00:12.7]} 46... Qd1 {[%clk 0:00:04.4]} 47. Qe2 {[%clk
0:00:12.3]} 47... Qd4 {[%clk 0:00:04.2]} 48. Qe3 {[%clk 0:00:11.8]} 48... Qa1
{[%clk 0:00:03.2]} 49. Qd3 {[%clk 0:00:11.4]} 49... Qe1 {[%clk 0:00:02.6]} 50.
Re2 {[%clk 0:00:11.4]} 50... Qc1 {[%clk 0:00:03.2]} 51. Qe3 {[%clk 0:00:11]}
51... Qa1 {[%clk 0:00:03.4]} 52. Qe8 {[%clk 0:00:11]} 52... Bd4 {[%clk
0:00:03.3]} 53. Qe4 {[%clk 0:00:10.6]} 53... Qc3 {[%clk 0:00:03.1]} 54. f3
{[%clk 0:00:10.1]} 54... Qa1 {[%clk 0:00:02.8]} 55. Re1 {[%clk 0:00:10.2]} 55...
Qb2+ {[%clk 0:00:02.9]} 56. Re2 {[%clk 0:00:10.8]} 56... Qa1 {[%clk 0:00:03.5]}
57. Re1 {[%clk 0:00:11.4]} 57... Qc3 {[%clk 0:00:04.2]} 58. g4 {[%clk
0:00:11.3]} 58... hxg4 {[%clk 0:00:03.9]} 59. Rf1 {[%clk 0:00:09]} 59... gxf3+
{[%clk 0:00:03.9]} 60. Rxf3 {[%clk 0:00:09.3]} 60... Rxf3 {[%clk 0:00:04.5]} 61.
Qxf3 {[%clk 0:00:09.4]} 61... Qd2+ {[%clk 0:00:05]} 62. Kg3 {[%clk 0:00:09.5]}
62... f5 {[%clk 0:00:05.2]} 63. Qf4 {[%clk 0:00:08.2]} 63... Be3 {[%clk
0:00:03.3]} 64. Qe5+ {[%clk 0:00:08.1]} 64... Kh6 {[%clk 0:00:03.4]} 65. Qh8#
{[%clk 0:00:08.1]} 1-0

[Event "Early-Titled-Tuesday-Blitz-October-17-2023"]
[Site "Chess.com"]
[Date "2023.10.17"]
[Round "11"]
[White "Fore_Man"]
[Black "Langua_Chess"]
[Result "0-1"]
[WhiteElo "2345"]
[BlackElo "2497"]
[TimeControl "180+1"]
[EndTime "10:10:47 PDT"]
[Termination "Langua_Chess won by resignation"]

1. Nf3 {[%clk 0:03:00.9]} 1... c5 {[%clk 0:02:55.5]} 2. c4 {[%clk 0:03:00.5]}
2... Nc6 {[%clk 0:02:53.8]} 3. d4 {[%clk 0:03:01]} 3... cxd4 {[%clk 0:02:48.4]}
4. Nxd4 {[%clk 0:03:01.9]} 4... e6 {[%clk 0:02:48.3]} 5. Nxc6 {[%clk 0:03:01.6]}
5... bxc6 {[%clk 0:02:47.6]} 6. g3 {[%clk 0:03:01.3]} 6... d5 {[%clk 0:02:47.5]}
7. Bg2 {[%clk 0:03:01.8]} 7... Nf6 {[%clk 0:02:48]} 8. O-O {[%clk 0:03:00]} 8...
Rb8 {[%clk 0:02:48.7]} 9. Qa4 {[%clk 0:02:58.9]} 9... Qd7 {[%clk 0:02:37.5]} 10.
cxd5 {[%clk 0:02:57.9]} 10... cxd5 {[%clk 0:02:36.7]} 11. Qxd7+ {[%clk
0:02:55.3]} 11... Bxd7 {[%clk 0:02:37.4]} 12. Nc3 {[%clk 0:02:55.8]} 12... Bd6
{[%clk 0:02:25]} 13. b3 {[%clk 0:02:55.3]} 13... O-O {[%clk 0:02:16.5]} 14. Bb2
{[%clk 0:02:54.2]} 14... Rfc8 {[%clk 0:02:17.2]} 15. Rfd1 {[%clk 0:02:49.7]}
15... a5 {[%clk 0:02:14.8]} 16. e4 {[%clk 0:02:49.7]} 16... Be5 {[%clk
0:02:15.1]} 17. Rac1 {[%clk 0:02:47.8]} 17... dxe4 {[%clk 0:02:07.9]} 18. Na4
{[%clk 0:01:43.9]} 18... Bxb2 {[%clk 0:02:06.9]} 19. Nxb2 {[%clk 0:01:44.8]}
19... Rxc1 {[%clk 0:02:06.9]} 20. Rxc1 {[%clk 0:01:43.6]} 20... g5 {[%clk
0:01:12.7]} 21. Nc4 {[%clk 0:01:36.3]} 21... a4 {[%clk 0:01:08.8]} 22. bxa4
{[%clk 0:01:35.5]} 22... Bxa4 {[%clk 0:01:05.2]} 23. Nd6 {[%clk 0:01:35.8]}
23... Rb4 {[%clk 0:00:46.2]} 24. h3 {[%clk 0:01:32.7]} 24... Rd4 {[%clk
0:00:45.6]} 25. Rc4 {[%clk 0:01:21.5]} 25... Rxc4 {[%clk 0:00:28.4]} 26. Nxc4
{[%clk 0:01:22.4]} 26... Kf8 {[%clk 0:00:27.5]} 27. Nd2 {[%clk 0:01:14.5]} 27...
Bc6 {[%clk 0:00:24.3]} 28. Nb3 {[%clk 0:01:14]} 28... Ke7 {[%clk 0:00:22.1]} 29.
Nd4 {[%clk 0:01:13.4]} 29... Bd5 {[%clk 0:00:16.2]} 30. a4 {[%clk 0:01:12]}
30... Kd6 {[%clk 0:00:16.9]} 31. a5 {[%clk 0:01:05.9]} 31... Kc5 {[%clk
0:00:17.3]} 32. Ne2 {[%clk 0:00:25.3]} 32... Kb5 {[%clk 0:00:17.2]} 33. Kf1
{[%clk 0:00:22.5]} 33... Kxa5 {[%clk 0:00:15.3]} 34. Ke1 {[%clk 0:00:22.3]}
34... Kb4 {[%clk 0:00:15.1]} 35. Kd2 {[%clk 0:00:22.7]} 35... Nd7 {[%clk
0:00:06.1]} 36. Ke3 {[%clk 0:00:21.8]} 36... f5 {[%clk 0:00:06.8]} 37. Nd4
{[%clk 0:00:20]} 37... Kc5 {[%clk 0:00:05.1]} 38. Ne2 {[%clk 0:00:18.8]} 38...
Kd6 {[%clk 0:00:05.3]} 39. h4 {[%clk 0:00:19]} 39... h6 {[%clk 0:00:04.9]} 40.
hxg5 {[%clk 0:00:19.1]} 40... hxg5 {[%clk 0:00:05.6]} 41. Bf1 {[%clk 0:00:19.6]}
41... Bc4 {[%clk 0:00:03]} 42. Bg2 {[%clk 0:00:16.4]} 42... Bxe2 {[%clk
0:00:02.8]} 43. Kxe2 {[%clk 0:00:17.3]} 43... Nf6 {[%clk 0:00:03]} 44. Bf1
{[%clk 0:00:18.2]} 44... Ke5 {[%clk 0:00:03.6]} 45. Ke3 {[%clk 0:00:18.7]} 45...
Nd5+ {[%clk 0:00:04.1]} 46. Ke2 {[%clk 0:00:19.1]} 46... Ne7 {[%clk 0:00:05]}
47. Bh3 {[%clk 0:00:18.6]} 47... f4 {[%clk 0:00:04.9]} 48. Bg4 {[%clk
0:00:18.3]} 48... Nc6 {[%clk 0:00:04.7]} 49. gxf4+ {[%clk 0:00:17.7]} 49... gxf4
{[%clk 0:00:04.7]} 50. Bh5 {[%clk 0:00:15.5]} 50... Nd4+ {[%clk 0:00:05.1]} 51.
Kf1 {[%clk 0:00:15.8]} 51... Nf5 {[%clk 0:00:04.8]} 52. Bg4 {[%clk 0:00:15.7]}
52... Ne7 {[%clk 0:00:03.9]} 53. Ke2 {[%clk 0:00:15.8]} 53... Nc6 {[%clk
0:00:04.4]} 54. Bh5 {[%clk 0:00:16]} 54... Nb4 {[%clk 0:00:04.6]} 55. Bg6 {[%clk
0:00:15.8]} 55... Nd5 {[%clk 0:00:05]} 56. Bh5 {[%clk 0:00:13.3]} 56... Nf6
{[%clk 0:00:04.3]} 57. Bg6 {[%clk 0:00:13.1]} 57... Kd4 {[%clk 0:00:04.3]} 58.
Bf7 {[%clk 0:00:11.6]} 58... e5 {[%clk 0:00:04.9]} 59. Bg6 {[%clk 0:00:11.7]}
59... Nd7 {[%clk 0:00:05]} 60. Bf5 {[%clk 0:00:11.8]} 60... Nc5 {[%clk
0:00:05.5]} 61. Kf1 {[%clk 0:00:12.1]} 61... Na4 {[%clk 0:00:05.9]} 62. Kg2
{[%clk 0:00:12.5]} 62... Nc3 {[%clk 0:00:06.5]} 63. Kf1 {[%clk 0:00:12.4]} 63...
e3 {[%clk 0:00:05.7]} 64. Ke1 {[%clk 0:00:12.7]} 64... Ne4 {[%clk 0:00:03.9]}
65. fxe3+ {[%clk 0:00:11.5]} 65... Kxe3 {[%clk 0:00:04.5]} 66. Kf1 {[%clk
0:00:11.1]} 66... Ng3+ {[%clk 0:00:04.6]} 67. Kg2 {[%clk 0:00:11.8]} 67... Nxf5
{[%clk 0:00:05.5]} 0-1

[Event "Early-Titled-Tuesday-Blitz-October-17-2023"]
[Site "Chess.com"]
[Date "2023.10.17"]
[Round "11"]
[White "Shockerlover"]
[Black "maurovargas01"]
[Result "1-0"]
[WhiteElo "1961"]
[BlackElo "1913"]
[TimeControl "180+1"]
[EndTime "10:10:47 PDT"]
[Termination "Shockerlover won on time"]

1. e4 {[%clk 0:03:00.9]} 1... d5 {[%clk 0:02:59.3]} 2. exd5 {[%clk 0:03:00.4]}
2... Qxd5 {[%clk 0:03:00.2]} 3. Nc3 {[%clk 0:03:00.1]} 3... Qa5 {[%clk
0:03:00.4]} 4. d4 {[%clk 0:02:59.6]} 4... c6 {[%clk 0:03:00.6]} 5. Bd3 {[%clk
0:02:59]} 5... Nf6 {[%clk 0:03:00.8]} 6. Bd2 {[%clk 0:02:54.8]} 6... Qc7 {[%clk
0:02:59.1]} 7. Qe2 {[%clk 0:02:53.2]} 7... Bg4 {[%clk 0:02:56.5]} 8. Nf3 {[%clk
0:02:44.8]} 8... e6 {[%clk 0:02:55.1]} 9. h3 {[%clk 0:02:44]} 9... Bh5 {[%clk
0:02:53.7]} 10. O-O-O {[%clk 0:02:42.8]} 10... Bd6 {[%clk 0:02:53.3]} 11. Bg5
{[%clk 0:02:22.8]} 11... Nbd7 {[%clk 0:02:52.5]} 12. g4 {[%clk 0:02:15.9]} 12...
Bg6 {[%clk 0:02:50.8]} 13. Ne5 {[%clk 0:02:15.8]} 13... Bxd3 {[%clk 0:02:46.5]}
14. Rxd3 {[%clk 0:02:10.4]} 14... Nxe5 {[%clk 0:02:38.8]} 15. dxe5 {[%clk
0:02:05.6]} 15... Bxe5 {[%clk 0:02:38.6]} 16. Rhd1 {[%clk 0:01:17]} 16... Bf4+
{[%clk 0:02:34.2]} 17. Bxf4 {[%clk 0:01:15.5]} 17... Qxf4+ {[%clk 0:02:34.1]}
18. Kb1 {[%clk 0:01:15]} 18... O-O {[%clk 0:02:33.9]} 19. g5 {[%clk 0:01:08.6]}
19... Nd5 {[%clk 0:02:28.3]} 20. Ne4 {[%clk 0:01:04.8]} 20... Qh4 {[%clk
0:01:52.4]} 21. Rg3 {[%clk 0:01:01.6]} 21... Qf4 {[%clk 0:01:31.1]} 22. Rg4
{[%clk 0:00:30.6]} 22... Qc7 {[%clk 0:01:30]} 23. c4 {[%clk 0:00:28.2]} 23...
Nf4 {[%clk 0:01:12.2]} 24. Nf6+ {[%clk 0:00:20.8]} 24... gxf6 {[%clk 0:00:44.4]}
25. gxf6+ {[%clk 0:00:20.7]} 25... Ng6 {[%clk 0:00:44.3]} 26. Qe3 {[%clk
0:00:20.1]} 26... Qe5 {[%clk 0:00:36.3]} 27. Qf3 {[%clk 0:00:12.9]} 27... Qf5+
{[%clk 0:00:30.9]} 28. Qxf5 {[%clk 0:00:06.7]} 28... exf5 {[%clk 0:00:31.8]} 29.
Rg5 {[%clk 0:00:06.5]} 29... Rfe8 {[%clk 0:00:26.8]} 30. h4 {[%clk 0:00:06.2]}
30... Kh8 {[%clk 0:00:21]} 31. h5 {[%clk 0:00:05.4]} 31... Ne5 {[%clk
0:00:19.9]} 32. Rg7 {[%clk 0:00:04.6]} 32... Rg8 {[%clk 0:00:17.9]} 33. Rdg1
{[%clk 0:00:04.4]} 33... Nf3 {[%clk 0:00:15.8]} 34. R1g3 {[%clk 0:00:02.5]}
34... Ne5 {[%clk 0:00:11.1]} 35. h6 {[%clk 0:00:02.2]} 35... Nxc4 {[%clk
0:00:10.3]} 36. b3 {[%clk 0:00:01.9]} 36... Rad8 {[%clk 0:00:09.8]} 37. bxc4
{[%clk 0:00:01.4]} 37... Rd1+ {[%clk 0:00:09.5]} 38. Kc2 {[%clk 0:00:01.6]}
38... Rdd8 {[%clk 0:00:09.5]} 39. Rd3 {[%clk 0:00:01.2]} 39... Rde8 {[%clk
0:00:07.9]} 40. Re3 {[%clk 0:00:01.1]} 40... Rd8 {[%clk 0:00:07.7]} 41. Kc3
{[%clk 0:00:01.3]} 41... Rc8 {[%clk 0:00:07.7]} 42. Rd3 {[%clk 0:00:02.2]} 42...
b5 {[%clk 0:00:07.7]} 43. Rd7 {[%clk 0:00:02.7]} 43... b4+ {[%clk 0:00:06.6]}
44. Kxb4 {[%clk 0:00:02.7]} 44... c5+ {[%clk 0:00:07.3]} 45. Kc3 {[%clk
0:00:02.5]} 45... Rce8 {[%clk 0:00:06.5]} 46. Rdxf7 {[%clk 0:00:02.7]} 46...
Rxg7 {[%clk 0:00:05.1]} 47. fxg7+ {[%clk 0:00:02.6]} 47... Kg8 {[%clk
0:00:05.6]} 48. Rxf5 {[%clk 0:00:02.6]} 48... a5 {[%clk 0:00:02]} 49. Rxc5
{[%clk 0:00:02.8]} 49... a4 {[%clk 0:00:02.9]} 50. Ra5 {[%clk 0:00:01.9]} 1-0